Workbook

Sheet INFORME 6
A1: AMÉRICA MÓVIL PERÚ S.A.C.
A3: INFORME 6: INGRESOS OPERATIVOS MAYORISTAS POR EMPRESA
A5: Periodo de reporte: Al 31 de Diciembre de 2018
A7: Expresado en Miles de Soles | C7: Ingresos calculados (en base a precios de lista) | D7: Ajustes (descuentos y promociones) | E7: Estado de Resultados de Contabilidad Separada (valor facturado) | F7: Nota
A8: INGRESOS OPERATIVOS MAYORISTAS | C8: =+C9+C24+C75+C76 -> 955079.7987 | D8: =+D9+D24+D75+D76 -> 0 | E8: =+E9+E24+E75+E76 -> 955079.7987
A9: De empresas operadoras vinculadas | C9: =+C10 -> 568149.2223 | D9: =+D10 -> 0 | E9: 568149.2223
A10: GRUPO OLO (OLO + TVS) | C10: =+SUM(C11:C23) -> 568149.2223 | D10: =+SUM(D11:D23) -> 0 | E10: =+SUM(E11:E23) -> 568149.2223
B11: Renta Telefonía Fija de Abonado Urbano | C11: 76.11112 | D11: 0 | E11: =+C11-D11 -> 76.11112
B12: Llamadas LDI Telefonía Fija de Abonado Urbano (DD) | C12: 0.79255 | D12: 0 | E12: 0.79255
B13: Prestación de servicios Internet Fijo | C13: 15.94865 | D13: 0 | E13: 15.94865
B14: Renta mensual por Voz Móvil | C14: 50.76469 | D14: 0 | E14: 50.76469
B15: Llamadas LD de Voz Móvil por Telefonía Móvil | C15: 0.1089 | D15: 0 | E15: 0.1089
B16: Roaming Internacional por Telefonía Móvil | C16: 0.01327 | D16: 0 | E16: 0.01327
B17: Consumo no incluido en la renta mensual Internet Móvil | C17: 0.00642 | D17: 0 | E17: 0.00642
B18: Servicios Suplementarios | C18: 9.25461 | D18: 0 | E18: 9.25461
B19: Suministro de Equipos | C19: 2.273736754e-16 | D19: 0 | E19: 2.273736754e-16
B20: Alquiler y Transmisión a otros operadores | C20: 275.46573 | D20: 0 | E20: 275.46573
B21: Terminación de Llamadas en la Red de Servicio Móvil | C21: 0.00179 | D21: 0 | E21: 0.00179
B22: Terminación de Llamadas en la Red del Servicio de Telefonía Fija Local | C22: 0.00025 | D22: 0 | E22: 0.00025
B23: Otros (*) | C23: 567720.7544 | D23: 0 | E23: 567720.7544
A24: De empresas operadoras no vinculadas | C24: =+C25+C35+C45+C55+C65 -> 305420.046 | D24: =+D25+D35+D45+D55+D65 -> 0 | E24: 305420.046
A25: TELEFÓNICA DEL PERÚ S.A.A. | C25: =+SUM(C26:C34) -> 167296.6126 | D25: =+SUM(D26:D34) -> 0 | E25: 167296.6126
B26: Transporte Conmutado Local | C26: 0 | D26: 0 | E26: =+C26-D26 -> 0
B27: Transporte Conmutado de Larga Distancia Nacional | C27: 130.841529 | D27: 0 | E27: 130.841529
B28: Acceso a los Teléfonos de Uso Público | C28: 3.288356 | D28: 0 | E28: 3.288356
B29: Terminación de Llamadas en la Red de Servicio Móvil | C29: 153283.9816 | D29: 0 | E29: 153283.9816
B30: Terminación de Llamadas en la Red del Servicio de Telefonía Fija Local | C30: 3445.507852 | D30: 0 | E30: 3445.507852
B31: Facturación y Recaudación | C31: 0 | D31: 0 | E31: 0
B32: Adecuación de Red | C32: 3592.70898 | D32: 0 | E32: 3592.70898
B33: Acceso a la Plataforma de Pago | C33: 32.101288 | D33: 0 | E33: 32.101288
B34: Enlaces de Interconexión | C34: 6808.182972 | D34: 0 | E34: 6808.182972
A35: ENTEL PERÚ | C35: =+SUM(C36:C44) -> 88353.03884 | D35: =+SUM(D36:D44) -> 0 | E35: 88353.03884
B36: Transporte Conmutado Local | C36: 6.038972 | D36: 0 | E36: =+C36-D36 -> 6.038972
B37: Transporte Conmutado de Larga Distancia Nacional | C37: 96.958061 | D37: 0 | E37: 96.958061
B38: Acceso a los Teléfonos de Uso Público | C38: 0 | D38: 0 | E38: 0
B39: Terminación de Llamadas en la Red de Servicio Móvil | C39: 86064.8246 | D39: 0 | E39: 86064.8246
B40: Terminación de Llamadas en la Red del Servicio de Telefonía Fija Local | C40: 341.939122 | D40: 0 | E40: 341.939122
B41: Facturación y Recaudación | C41: 0 | D41: 0 | E41: 0
B42: Adecuación de Red | C42: 1439.31622 | D42: 0 | E42: 1439.31622
B43: Acceso a la Plataforma de Pago | C43: 0 | D43: 0 | E43: 0
B44: Enlaces de Interconexión | C44: 403.96187 | D44: 0 | E44: 403.96187
A45: VIETTEL PERÚ S.A.C. | C45: =+SUM(C46:C54) -> 47723.65914 | D45: =+SUM(D46:D54) -> 0 | E45: 47723.65914
B46: Transporte Conmutado Local | C46: 0 | D46: 0 | E46: =+C46-D46 -> 0
B47: Transporte Conmutado de Larga Distancia Nacional | C47: 305.869758 | D47: 0 | E47: 305.869758
B48: Acceso a los Teléfonos de Uso Público | C48: 0 | D48: 0 | E48: 0
B49: Terminación de Llamadas en la Red de Servicio Móvil | C49: 45258.34227 | D49: 0 | E49: 45258.34227
B50: Terminación de Llamadas en la Red del Servicio de Telefonía Fija Local | C50: 514.40419 | D50: 0 | E50: 514.40419
B51: Facturación y Recaudación | C51: 0 | D51: 0 | E51: 0
B52: Adecuación de Red | C52: 1645.04292 | D52: 0 | E52: 1645.04292
B53: Acceso a la Plataforma de Pago | C53: 0 | D53: 0 | E53: 0
B54: Enlaces de Interconexión | C54: 0 | D54: 0 | E54: 0
A55: INKACEL S.A. | C55: =+SUM(C56:C64) -> 21.424993 | D55: =+SUM(D56:D64) -> 0 | E55: 21.424993
B56: Transporte Conmutado Local | C56: 0 | D56: 0 | E56: =+C56-D56 -> 0
B57: Transporte Conmutado de Larga Distancia Nacional | C57: 0 | D57: 0 | E57: 0
B58: Acceso a los Teléfonos de Uso Público | C58: 0 | D58: 0 | E58: 0
B59: Terminación de Llamadas en la Red de Servicio Móvil | C59: 20.768973 | D59: 0 | E59: 20.768973
B60: Terminación de Llamadas en la Red del Servicio de Telefonía Fija Local | C60: 0.65602 | D60: 0 | E60: 0.65602
B61: Facturación y Recaudación | C61: 0 | D61: 0 | E61: 0
B62: Adecuación de Red | C62: 0 | D62: 0 | E62: 0
B63: Acceso a la Plataforma de Pago | C63: 0 | D63: 0 | E63: 0
B64: Enlaces de Interconexión | C64: 0 | D64: 0 | E64: 0
A65: OTROS OPERADORES | C65: =+SUM(C66:C74) -> 2025.310409 | D65: =+SUM(D66:D74) -> 0 | E65: 2025.310409
B66: Transporte Conmutado Local | C66: 15.334692 | D66: 0 | E66: =+C66-D66 -> 15.334692
B67: Transporte Conmutado de Larga Distancia Nacional | C67: 114.110196 | D67: 0 | E67: 114.110196
B68: Acceso a los Teléfonos de Uso Público | C68: 2.089511 | D68: 0 | E68: 2.089511
B69: Terminación de Llamadas en la Red de Servicio Móvil | C69: 847.785692 | D69: 0 | E69: 847.785692
B70: Terminación de Llamadas en la Red del Servicio de Telefonía Fija Local | C70: 644.738985 | D70: 0 | E70: 644.738985
B71: Facturación y Recaudación | C71: 4.516173 | D71: 0 | E71: 4.516173
B72: Adecuación de Red | C72: 108.39541 | D72: 0 | E72: 108.39541
B73: Acceso a la Plataforma de Pago | C73: 83.17183 | D73: 0 | E73: 83.17183
B74: Enlaces de Interconexión | C74: 205.16792 | D74: 0 | E74: 205.16792
A75: De redes internacionales | C75: 19881.14219 | D75: 0 | E75: 19881.14219
A76: Otros | C76: 61629.38823 | D76: 0 | E76: 61629.38823
A77: Ingreso Imputado | C77: No aplica | D77: No aplica | E77: No aplica
B79: (*) Incluye S/567'720,576.41 por concepto de arrendamiento de infraestructura que se factura a grupo OLO.
